bitfinex/quotes_ETHUSD_20241231
["timestamp","ask_amount","ask_price","bid_price","bid_amount"]
[1735651545980,2.92167,3422.7,3421.8,2.92242]
[1735651546400,0.55,3422.6,3421.8,2.92242]
[1735651546584,1.25638901,3422.6,3421.6,3.73716]
[1735651546799,0.55,3422.4,3421.6,3.73716]
[1735651547626,0.55,3422.4,3421.6,0.8146]
[1735651547785,0.55,3422.3,3421.6,0.8146]
[1735651547996,3.55,3422.3,3421.6,0.8146]
[1735651548339,3.62816901,3422.6,3421.6,0.8146]
[1735651548638,0.55,3422.4,3421.6,0.8146]
[1735651548935,0.55,3422.4,3421.2,0.2496]
[1735651548936,0.55,3422.1,3421.3,0.8146]
[1735651549260,0.55,3422.1,3421.3,3.73744]
[1735651549638,0.55,3422.4,3421.3,0.8146]
[1735651549843,0.55,3422.2,3421.3,0.8146]
[1735651550342,0.55,3422.4,3421.3,0.8146]
[1735651550738,3.55,3422.3,3421.5,2.92264]
[1735651551441,0.55,3422.5,3421.6,2.9226]
[1735651551612,0.55,3422.5,3421.7,0.7933]
[1735651551801,0.55,3422.6,3421.7,0.7933]
[1735651551997,0.347167,3422.5,3421.8,2.92242]
[1735651552930,0.55,3422.4,3421.7,0.7933]
[1735651553239,1.81628796,3422.9,3421.9,2.92227]
[1735651553445,2.92159,3422.8,3421.9,2.92227]
[1735651553807,0.55,3422.7,3421.9,2.92227]
[1735651554326,0.55,3422.7,3422.0,0.371557]
[1735651556226,0.55,3422.7,3421.9,2.92227]
[1735651557248,0.55,3422.9,3422.0,2.5]
[1735651557449,3.59387028,3423.0,3422.0,2.5]
[1735651557655,0.55,3422.3,3422.0,2.5]
[1735651558368,0.55,3422.2,3422.0,2.5]
[1735651558729,0.55,3422.4,3422.0,2.5]
[1735651559049,3.47192,3422.4,3422.0,2.5]
[1735651560024,3.47178,3422.6,3422.0,2.5]
[1735651560258,4.99917185,3422.6,3422.0,2.5]
[1735651560460,6.22323967,3422.6,3422.0,2.5]
[1735651561437,1.22406782,3422.6,3422.0,2.5]
[1735651561637,1.22406782,3422.6,3422.2,0.7933]
[1735651561871,1.22406782,3422.6,3422.5,2.92184]
[1735651562028,1.22406782,3422.6,3422.5,3.71514]
[1735651563369,4.2229,3423.1,3423.0,3.71471]
[1735651563545,4.2229,3423.1,3423.0,7.19435146]
[1735651563967,4.2229,3423.1,3423.0,9.63135146]
[1735651564178,4.2229,3423.1,3423.0,7.19435146]
[1735651564491,4.2229,3423.1,3423.0,10.41580146]
[1735651564691,4.2229,3423.1,3423.0,7.19435146]
[1735651565034,4.2229,3423.1,3423.0,4.378339]
[1735651565726,3.00285751,3423.1,3423.0,4.378339]
[1735651565926,3.00285751,3423.1,3423.0,7.19435146]
[1735651566172,3.00285751,3423.1,3423.0,9.29033146]
[1735651566370,3.00285751,3423.1,3423.0,7.19435146]
[1735651569166,3.00285751,3423.1,3423.0,4.378339]
[1735651569467,3.00285751,3423.1,3423.0,3.71471]
[1735651570027,3.00285751,3423.1,3423.0,0.7933]
[1735651570557,0.55,3423.0,3422.5,0.7909]
[1735651570870,0.55,3422.8,3422.1,1.99966338]
[1735651571244,0.55,3422.8,3422.0,2.5]
[1735651571245,0.55,3422.7,3422.0,2.5]
[1735651571575,0.55,3422.9,3422.0,2.5]
[1735651571730,0.55,3422.3,3422.0,2.5]
[1735651571931,2.92156,3422.9,3422.0,2.5]
[1735651572153,3.55,3422.5,3422.0,2.5]
[1735651572364,6.47185,3422.5,3422.0,2.5]
[1735651572743,2.92175,3422.7,3422.0,2.5]
[1735651573142,3.0,3422.7,3422.0,2.5]
[1735651573662,0.55,3422.6,3422.0,2.5]
[1735651573839,0.55,3422.9,3422.1,0.542233]
[1735651574040,0.55,3422.9,3422.0,2.5]
[1735651574238,0.55,3422.9,3422.0,5.42224]
[1735651575671,3.47152,3422.9,3422.0,2.5]
[1735651576773,2.92175,3422.6,3422.0,2.5]
[1735651576970,0.55,3422.4,3422.0,2.5]
[1735651577376,3.0,3423.0,3422.0,2.5]
[1735651577377,3.55,3422.6,3422.0,2.5]
[1735651577559,0.55,3422.4,3422.0,2.5]
[1735651577870,0.55,3422.5,3422.0,2.5]
[1735651578950,2.92169,3422.7,3422.0,2.5]
[1735651579150,0.55,3422.6,3422.0,2.5]
[1735651579578,2.92142,3423.0,3422.1,0.7909]
[1735651579849,0.83539724,3423.0,3422.1,3.71305]
[1735651580044,3.00285751,3423.1,3422.1,0.7909]
[1735651580251,3.00285751,3423.1,3422.3,2.92194]
[1735651580452,0.55,3423.0,3422.3,2.92194]
[1735651582177,0.55,3423.0,3422.4,2.9219]
[1735651582373,0.55,3423.0,3422.5,2.92183]
[1735651582579,0.55,3423.0,3422.7,0.7813]
[1735651584592,3.00285751,3423.1,3422.7,3.70289]
[1735651584977,3.00285751,3423.1,3422.9,2.92145]
[1735651585164,3.00285751,3423.1,3422.7,3.70296]
[1735651586186,3.00285751,3423.1,3422.7,0.7813]
[1735651586391,3.00285751,3423.1,3422.8,2.92152]
[1735651586593,3.00285751,3423.1,3422.8,3.291802]
[1735651587171,3.00285751,3423.1,3422.8,0.370282]
[1735651587355,3.00285751,3423.1,3422.7,0.7813]
[1735651587891,3.00285751,3423.1,3422.7,3.70295]
[1735651588859,3.00285751,3423.1,3422.7,0.7813]
[1735651589062,3.00285751,3423.1,3422.8,2.92158]
[1735651589501,3.00285751,3423.1,3422.7,3.70295]
[1735651589703,3.00285751,3423.1,3422.8,3.291875]
[1735651590376,3.00285751,3423.1,3422.8,0.370295]
[1735651591500,3.00285751,3423.1,3422.7,0.7813]
[1735651591699,3.00285751,3423.1,3422.7,3.70295]
[1735651592498,3.00285751,3423.1,3422.8,2.92156]
[1735651593322,3.00285751,3423.1,3422.9,2.92149]
[1735651593621,3.00285751,3423.1,3422.7,0.7813]
[1735651593817,3.00285751,3423.1,3422.8,0.37031]
[1735651595503,3.00285751,3423.1,3422.8,3.29187]
[1735651595705,3.00285751,3423.1,3422.9,2.92148]
[1735651595909,3.00285751,3423.1,3423.0,2.92141]
[1735651596484,3.00285751,3423.1,3423.0,3.74401]
[1735651596679,3.00285751,3423.1,3423.0,4.447604]
[1735651598430,3.00285751,3423.1,3423.0,6.947604]
[1735651601427,3.00285751,3423.1,3423.0,9.76361646]
[1735651603593,7.51e-06,3423.1,3423.0,17.57962892]
[1735651603820,7.51e-06,3423.1,3423.0,17.10170892]
[1735651603994,7.51e-06,3423.1,3423.0,12.25011646]
[1735651604357,7.51e-06,3423.1,3423.0,9.76361646]
[1735651604522,7.51e-06,3423.1,3423.0,11.89349646]
[1735651605033,7.51e-06,3423.1,3423.0,9.76361646]
[1735651605260,7.51e-06,3423.1,3423.0,12.39209646]
[1735651605758,7.51e-06,3423.1,3423.0,9.76361646]
[1735651605917,0.55,3423.5,3423.0,9.06001246]
[1735651606255,0.55,3423.5,3423.1,2.92132]
[1735651606555,0.55,3423.5,3423.2,2.92124]
[1735651607375,10.54,3423.6,3423.2,2.92124]
[1735651607723,0.55,3423.5,3423.0,9.05998246]
[1735651607899,0.55,3423.5,3423.0,3.3226]
[1735651607900,2.08129,3423.5,3423.0,3.3226]
[1735651608096,2.08129,3423.5,3423.0,6.244]
[1735651608337,0.55,3423.5,3423.0,6.244]
[1735651608534,0.55,3423.5,3423.1,2.92125]
[1735651608740,10.54,3423.6,3423.1,2.92125]
[1735651608907,10.54,3423.6,3423.0,3.3226]
[1735651610639,10.54,3423.6,3423.0,2.5]
[1735651612336,10.54,3423.6,3423.1,2.92132]
[1735651613707,10.54,3423.6,3423.0,2.5]
[1735651613908,10.54,3423.6,3423.1,2.92132]
[1735651614453,0.55,3423.5,3423.0,5.42138]
[1735651616158,10.54,3423.6,3423.0,5.42138]
[1735651616364,10.54,3423.6,3423.1,2.9213]
[1735651617473,10.54,3423.6,3423.2,0.7846]
[1735651617608,10.54,3423.6,3423.2,3.70579]
[1735651617804,10.54,3423.6,3423.2,2.92119]
[1735651618069,10.54,3423.6,3423.0,5.4214]
[1735651618211,12.01629,3423.6,3423.0,5.4214]
[1735651618414,10.54,3423.6,3423.0,5.4214]
[1735651620418,10.54,3423.6,3423.1,2.92132]
[1735651620933,10.54,3423.6,3423.0,2.5]
[1735651621130,10.54,3423.6,3423.3,2.92114]
[1735651622456,10.54,3423.6,3423.0,2.5]
[1735651622758,10.54,3423.6,3423.4,2.921]
[1735651623760,10.54,3423.6,3423.4,0.7846]
[1735651623968,10.54,3423.6,3423.4,3.70566]
[1735651624264,10.54,3423.6,3423.5,2.92098]
[1735651625261,10.54,3423.6,3423.3,2.92113]
[1735651625420,10.54,3423.6,3423.3,3.866687]
[1735651626948,10.54,3423.6,3423.4,2.92105]
[1735651627458,10.54,3423.6,3423.3,0.945557]
[1735651627623,10.54,3423.6,3423.3,3.866707]
[1735651628050,10.54,3423.6,3423.3,0.945557]
[1735651628361,10.54,3423.6,3423.1,3.24975]
[1735651629532,10.54,3423.6,3423.0,2.5]
[1735651629966,10.54,3423.6,3423.2,2.92122]
[1735651630149,10.54,3423.6,3423.3,2.92115]
[1735651630744,10.54,3423.6,3423.4,2.92104]
[1735651631884,10.54,3423.6,3423.3,0.7716]
[1735651632370,10.54,3423.6,3423.3,4.43288534]
[1735651632545,10.54,3423.6,3423.4,2.92104]
[1735651633777,10.54,3423.6,3423.3,1.51175534]
[1735651634577,10.54,3423.6,3423.4,2.92105]
[1735651634978,10.54,3423.6,3423.5,2.92098]
[1735651635277,10.54,3423.6,3423.5,3.36425353]
[1735651643567,10.54,3423.6,3423.5,4.13035353]
[1735651645573,10.54,3423.6,3423.5,5.13402944]
[1735651646897,10.54,3423.6,3423.5,8.9652689]
[1735651647067,10.54,3423.6,3423.5,6.6394589]
[1735651647859,10.54,3423.6,3423.5,10.8855789]
[1735651648289,10.54,3423.6,3423.5,6.6394589]
[1735651649366,10.54,3423.6,3423.5,11.6394589]
[1735651649569,10.54,3423.6,3423.5,12.7537789]
[1735651649899,10.54,3423.6,3423.5,13.18753228]
[1735651650077,10.54,3423.6,3423.5,10.84822228]
[1735651650277,10.54,3423.6,3423.5,14.53446495]
[1735651650599,10.54,3423.6,3423.5,12.07911495]
[1735651650904,9.32018998,3423.6,3423.5,13.49272157]
[1735651651308,9.32018998,3423.6,3423.5,15.87035157]
[1735651651476,9.32018998,3423.6,3423.5,5.8733589]
[1735651652006,9.32018998,3423.6,3423.5,10.8733589]
[1735651652207,9.32018998,3423.6,3423.5,6.6394589]
[1735651652698,9.32018998,3423.6,3423.5,6.33685353]
[1735651652867,9.32018998,3423.6,3423.5,4.13035353]
[1735651653467,9.32018998,3423.6,3423.5,10.32239353]
[1735651653673,9.32018998,3423.6,3423.5,9.78029353]
[1735651654286,9.32018998,3423.6,3423.5,11.47488353]
[1735651654709,9.32018998,3423.6,3423.5,9.62052353]
[1735651654884,9.32018998,3423.6,3423.5,7.13035353]
[1735651655212,9.32018998,3423.6,3423.5,10.84859709]
[1735651655513,9.32018998,3423.6,3423.5,7.84859709]
[1735651655810,9.32018998,3423.6,3423.5,6.63922356]
[1735651656184,9.32018998,3423.6,3423.5,5.42650995]
[1735651657273,9.32018998,3423.6,3423.5,2.92098]
[1735651659131,9.32018998,3423.6,3423.4,2.92103]
[1735651659712,9.32018998,3423.6,3423.3,1.50348895]
[1735651659889,1.354309,3423.5,3423.1,1.21271361]
[1735651660274,9.32018998,3423.6,3423.1,1.21271361]
[1735651661326,9.32018998,3423.6,3423.0,5.42139]
[1735651661472,9.32018998,3423.6,3423.1,2.92124]
[1735651661674,9.32018998,3423.6,3423.3,2.92107]
[1735651661899,9.32018998,3423.6,3423.1,2.92124]
[1735651662110,9.32018998,3423.6,3423.5,2.92098]
[1735651664328,9.32018998,3423.6,3423.1,4.13401361]
[1735651665445,9.32018998,3423.6,3423.1,1.21271361]
[1735651665962,9.32018998,3423.6,3423.0,5.4214]
[1735651666166,9.32018998,3423.6,3423.3,2.92108]
[1735651666659,9.32018998,3423.6,3423.2,2.92121]
[1735651666968,9.32018998,3423.6,3423.2,2.92118]
[1735651667861,9.32018998,3423.6,3423.1,2.5074848]
[1735651668163,9.32018998,3423.6,3423.4,2.921]
[1735651668721,9.32018998,3423.6,3423.5,2.92098]
[1735651669669,9.32018998,3423.6,3423.5,5.0698]
[1735651670370,9.32018998,3423.6,3423.5,8.8536]
[1735651670672,9.32018998,3423.6,3423.5,9.21147782]
[1735651670904,9.32018998,3423.6,3423.5,14.48799348]
[1735651671192,9.32018998,3423.6,3423.5,13.01721348]
[1735651671533,9.32018998,3423.6,3423.5,11.00739348]
[1735651671773,9.32018998,3423.6,3423.5,19.82506511]
[1735651671934,7.15182452,3423.6,3423.5,19.82506511]
[1735651672146,7.15182452,3423.6,3423.5,14.82506511]
[1735651672348,7.15182452,3423.6,3423.5,16.98685511]
[1735651672686,7.15182452,3423.6,3423.5,16.97181511]
[1735651672861,7.15182452,3423.6,3423.5,15.15867003]
[1735651673063,7.15182452,3423.6,3423.5,15.16724003]
[1735651673362,7.15182452,3423.6,3423.5,13.01192003]
[1735651673964,6.99994078,3423.6,3423.5,16.35125003]
[1735651674158,7.8e-07,3423.6,3423.5,15.55878116]
[1735651674361,7.8e-07,3423.6,3423.5,12.21945116]
[1735651675895,7.8e-07,3423.7,3423.6,11.7047]
[1735651676224,0.19257036,3424.9,3423.7,0.7838]
[1735651676353,0.01,3427.9,3427.2,0.11727516]
[1735651676550,3.28061051,3427.3,3427.2,0.11727516]
[1735651676746,3.24043825,3427.3,3427.2,0.11727516]
[1735651676993,3.24043825,3427.3,3427.2,3.03510516]
[1735651677189,3.24043825,3427.3,3427.2,0.11727516]
[1735651677791,3.56448208,3427.3,3427.2,0.11727516]
[1735651678126,3.8875055,3428.6,3427.2,0.11727516]
[1735651678418,3.0,3428.1,3427.2,0.11727516]
[1735651678940,2.91708,3428.1,3427.2,0.11727516]
[1735651679071,3.0,3428.5,3427.2,0.11727516]
[1735651679272,2.91699,3428.2,3427.2,0.11727516]
[1735651679804,0.55,3428.1,3427.2,0.11727516]
[1735651680129,1.09774526,3428.4,3427.2,0.11727516]
[1735651680130,2.91716,3428.0,3427.2,0.11727516]
[1735651680641,5.91699,3428.2,3427.2,0.11727516]
[1735651680786,0.55,3428.1,3427.2,0.11727516]
[1735651680988,1.09774526,3428.4,3427.2,0.11727516]
[1735651681190,3.8875055,3428.6,3427.4,2.80064006]
[1735651681406,3.8875055,3428.6,3427.9,2.80064006]
[1735651681589,3.8875055,3428.6,3427.7,2.9174]
[1735651681790,3.8875055,3428.6,3427.8,2.91731]
[1735651682136,3.8875055,3428.6,3428.0,5.71779006]
[1735651682826,3.8875055,3428.6,3428.0,2.80064006]
[1735651683027,3.8875055,3428.6,3428.1,2.91706]
[1735651683230,3.8875055,3428.6,3428.3,2.80064006]
[1735651683821,3.8875055,3428.6,3427.6,1.20190706]
[1735651684188,3.8875055,3428.6,3427.8,2.80064006]
[1735651684431,4.27775605,3428.6,3428.1,2.80064006]
[1735651685534,4.27775605,3428.6,3427.6,2.91746]
[1735651685756,4.27775605,3428.6,3427.8,2.80064006]
[1735651685932,3.8875055,3428.6,3427.8,2.80064006]
[1735651686815,3.8875055,3428.6,3427.8,5.71795006]
[1735651687398,3.8875055,3428.6,3427.8,2.80064006]
[1735651688724,3.55511513,3428.6,3427.8,2.80064006]
[1735651689035,3.55511513,3428.6,3427.5,2.91754]
[1735651689036,2.91683,3428.4,3427.5,2.80064006]
[1735651689235,0.35553051,3428.3,3427.5,2.80064006]
[1735651691052,2.91697,3428.3,3427.5,2.80064006]
[1735651691539,3.0,3428.6,3427.5,2.80064006]
[1735651691747,3.55,3428.6,3427.5,2.80064006]
[1735651692039,0.55,3428.2,3427.5,2.80064006]
[1735651692224,4.55924263,3432.0,3427.5,2.80064006]
[1735651692425,0.55,3428.9,3427.5,2.80064006]
[1735651692751,0.55,3428.9,3427.2,2.80064006]
[1735651692901,0.55,3428.7,3427.2,2.80064006]
[1735651693237,0.55,3428.2,3427.2,2.80064006]
[1735651693446,2.91685,3428.4,3428.0,2.80064006]
[1735651693447,2.91689,3428.4,3428.0,2.80064006]
[1735651693623,0.291689,3428.3,3427.7,2.80064006]
[1735651694007,2.91698,3428.2,3427.4,2.80064006]
[1735651694751,2.91707,3428.1,3427.4,2.80064006]
[1735651695052,3.0,3428.6,3427.7,2.80064006]
[1735651695212,0.55,3428.5,3427.7,2.80064006]
[1735651695412,0.55,3428.3,3427.7,2.80064006]
[1735651695608,3.46696,3428.3,3427.4,2.80064006]
[1735651695955,3.46696,3428.3,3427.7,2.80064006]
[1735651696165,2.91699,3428.2,3427.7,2.80064006]
[1735651696515,2.91699,3428.2,3427.4,2.80064006]
[1735651696726,3.3284249,3428.1,3427.5,2.80064006]
[1735651697455,0.4113649,3428.1,3427.5,2.80064006]
[1735651697811,3.0,3428.8,3427.5,2.80064006]
[1735651698015,2.91681,3428.4,3427.5,2.80064006]
[1735651698428,2.91681,3428.4,3427.8,2.80064006]
[1735651698630,3.0,3428.8,3427.8,2.80064006]
[1735651698832,2.91667,3428.6,3427.6,2.91746]
[1735651699027,3.508337,3428.6,3427.6,2.91746]
[1735651699244,2.91649,3428.8,3427.8,2.80064006]
[1735651699457,2.91649,3428.8,3427.8,5.71795006]
[1735651699832,2.91649,3428.8,3427.8,2.80064006]
[1735651700232,2.91656,3428.7,3427.8,2.80064006]
[1735651700443,0.291656,3428.6,3427.8,2.80064006]
[1735651700807,2.9169,3428.3,3427.5,2.80064006]
[1735651701072,2.9169,3428.3,3427.3,3.71541]
[1735651701073,2.91689,3428.4,3427.3,0.7977]
[1735651701229,2.91689,3428.4,3427.5,2.91756]
[1735651701427,2.91666,3428.6,3427.6,2.91747]
[1735651701631,3.0,3429.0,3427.5,2.80064006]
[1735651701861,0.75765836,3428.9,3427.3,3.0]
[1735651702030,2.91689,3428.4,3427.3,3.0]
[1735651702468,0.55,3428.5,3427.5,2.80064006]
[1735651702688,3.46679,3428.5,3427.5,2.80064006]
[1735651702835,0.55,3428.7,3427.5,2.80064006]
[1735651703031,3.63911484,3428.6,3427.5,5.71821006]
[1735651703293,3.63911484,3428.6,3427.6,2.91747]
[1735651703475,3.63911484,3428.6,3427.5,2.80064006]
[1735651703476,0.72240484,3428.6,3427.5,2.80064006]
[1735651703649,2.91659,3428.7,3428.0,1.157]
[1735651703849,3.0,3428.8,3428.0,1.157]
[1735651704072,3.67407836,3428.9,3428.0,1.157]
[1735651704476,2.91649,3428.8,3428.0,1.157]
[1735651704971,0.75765836,3428.9,3428.0,1.157]
[1735651705171,0.43325041,3428.8,3428.0,1.157]
[1735651705373,3.67404836,3428.9,3428.0,4.0741]
[1735651705671,3.83006867,3429.2,3428.3,2.91685]
[1735651705882,2.91623,3429.1,3428.1,3.71474]
[1735651706082,0.55,3429.1,3428.1,0.7977]
[1735651706445,2.9164,3428.9,3428.1,0.7977]
[1735651706646,3.46625,3429.1,3428.1,0.7977]
[1735651706842,0.8606857,3429.0,3428.1,6.51540006]
[1735651707389,3.83006867,3429.2,3428.2,2.91697]
[1735651707588,6.74620867,3429.2,3428.2,2.91697]
[1735651707751,3.83006867,3429.2,3428.3,2.91688]
[1735651707950,3.83006867,3429.2,3428.4,2.91679]
[1735651708182,3.83006867,3429.2,3428.4,2.91678]
[1735651708575,4.86311559,3429.2,3428.1,6.51534006]
[1735651709299,4.86311559,3429.2,3428.2,2.91697]
[1735651709592,4.86311559,3429.2,3428.2,2.91698]
[1735651709817,4.86311559,3429.2,3428.3,2.91681]
[1735651710413,7.77927559,3429.2,3428.1,6.51535006]
[1735651710652,0.83637161,3429.1,3428.2,2.91696]
[1735651710781,3.75258161,3429.1,3428.2,2.91696]
[1735651710977,3.83006867,3429.2,3428.8,2.80064006]
[1735651711296,3.83006867,3429.2,3428.0,4.157]
[1735651711297,2.90676867,3429.2,3429.1,6.52565006]
[1735651711493,2.90676867,3429.2,3429.1,9.27348006]
[1735651711709,4.2229,3429.8,3429.4,2.91592]
[1735651711916,4.2229,3429.8,3429.1,0.8088]
[1735651712081,4.2229,3429.8,3429.4,2.91592]
[1735651712277,4.2229,3429.8,3429.7,5.71634006]
[1735651712483,0.05,3430.0,3429.8,0.8088]
[1735651712695,0.05,3430.0,3429.9,2.91553]
[1735651712916,0.05,3430.0,3429.9,6.23713]
[1735651713121,0.05,3430.0,3429.9,7.04593]
[1735651713417,1.50848898,3430.4,3430.3,2.91519]
[1735651713635,0.05092898,3430.4,3430.3,6.52463006]
[1735651713816,0.05092898,3430.4,3430.3,11.52463006]
[1735651713999,8.98e-06,3430.4,3430.3,11.52463006]
[1735651714432,8.98e-06,3430.4,3430.3,14.52463006]
[1735651714641,0.2169996,3430.9,3430.3,14.52463006]
[1735651714642,8.98e-06,3430.7,3430.6,3.72374]
[1735651714940,8.98e-06,3430.7,3430.6,11.52438006]
[1735651715229,8.98e-06,3430.7,3430.6,14.52438006]
[1735651715629,8.98e-06,3430.7,3430.6,11.72374]
[1735651715962,8.98e-06,3430.7,3430.6,18.95444801]
[1735651716294,0.2169996,3430.9,3430.8,2.91477]
[1735651716602,4.2229,3432.2,3431.5,0.784]
[1735651716804,4.2229,3432.2,3431.0,0.784]
[1735651717127,4.1729,3431.6,3431.0,0.784]
[1735651717329,4.1729,3431.6,3431.2,2.80064006]
[1735651717503,4.1729,3431.6,3431.3,2.91428]
[1735651717921,4.1729,3431.6,3431.2,2.80064006]
[1735651718132,4.1729,3431.6,3431.1,2.46064926]
[1735651718576,2.91421,3431.5,3431.3,2.46064926]
[1735651718702,0.787261,3431.4,3431.3,2.46064926]
[1735651719443,1.572761,3431.4,3431.3,1.36489139]
[1735651719749,1.24025534,3431.4,3430.4,0.38063169]
[1735651720142,1.24025534,3431.4,3430.2,3.98982838]
[1735651720143,0.7855,3431.4,3430.5,2.91499]
[1735651720344,4.1729,3431.6,3430.8,2.80064006]
[1735651720546,4.1729,3431.6,3430.8,5.71539006]
[1735651720847,4.1729,3431.6,3431.0,2.91459]
[1735651721480,4.1729,3431.6,3430.8,5.71539006]
[1735651721618,4.1729,3431.6,3431.1,0.98414863]
[1735651721815,0.8355,3432.0,3431.1,3.89864863]
[1735651722017,0.8355,3432.0,3431.1,0.98414863]
[1735651722266,2.91396,3431.8,3431.1,0.98414863]
[1735651722467,0.8355,3432.0,3431.2,0.98414863]
[1735651722616,1.632711,3432.0,3431.2,0.98414863]
[1735651723283,1.632711,3432.0,3430.9,2.91465]
[1735651723462,1.632711,3432.0,3430.8,1.18918832]
[1735651723787,4.546491,3432.0,3430.7,1.97318832]
[1735651724074,1.632711,3432.0,3430.7,1.97318832]
[1735651724380,1.632711,3432.0,3430.8,2.91471]
[1735651724716,0.8355,3432.0,3431.0,2.91456]
[1735651725633,0.8355,3432.0,3431.1,0.98443929]
[1735651725994,0.55,3431.9,3431.1,0.98443929]
[1735651726198,2.91426,3431.4,3431.1,0.98443929]
[1735651726535,2.91422,3431.5,3431.1,0.98443929]
[1735651726740,0.7855,3431.4,3431.1,0.98443929]
[1735651726882,0.7855,3431.4,3430.5,4.10418832]
[1735651727080,0.7855,3431.4,3430.5,1.18918832]
[1735651727501,0.7855,3431.4,3430.4,2.91508]
[1735651727831,0.7855,3431.4,3430.5,2.80064006]
[1735651728036,0.7855,3431.9,3430.5,2.80064006]
[1735651728334,3.69934,3431.9,3430.7,2.91477]
[1735651728666,0.374934,3431.8,3430.8,2.91474]
[1735651729535,0.05,3432.0,3431.4,2.91425]
[1735651729676,0.005,3431.6,3431.4,2.91425]
[1735651730229,0.005,3431.6,3431.5,5.35117]
[1735651730377,0.005,3431.6,3431.5,5.2855]
[1735651730875,0.005,3431.6,3431.5,2.91417]
[1735651731324,0.005,3431.6,3431.1,3.0]
[1735651731535,0.005,3431.6,3431.5,8.71481006]
[1735651731704,0.005,3431.6,3431.5,8.79792]
[1735651731878,0.005,3431.6,3431.5,9.66498]
[1735651732220,0.005,3431.6,3431.5,9.31046]
[1735651732522,3.06073808,3432.2,3431.8,2.91391]
[1735651732824,3.06073808,3432.2,3431.9,2.91382]
[1735651733809,0.89715739,3432.2,3431.9,2.91382]
[1735651734119,0.89715739,3432.2,3432.0,2.91371]
[1735651734620,0.1722216,3432.6,3432.4,2.91341]
[1735651734929,0.1722216,3432.6,3432.4,8.51469012]
[1735651735123,1.6e-06,3432.6,3432.5,8.793]
[1735651735415,4.2229,3433.5,3433.0,2.91286]
[1735651735616,4.2229,3433.5,3433.3,5.71328006]
[1735651735841,4.2229,3433.5,3433.3,10.71328006]
[1735651736048,4.2229,3434.7,3434.1,3.0]
[1735651736247,4.2229,3434.7,3434.6,3.3262413]
[1735651736444,2.76717,3434.7,3434.6,9.1192413]
[1735651736644,2.76717,3434.7,3434.6,0.793]
[1735651736938,2.76717,3434.7,3433.9,0.793]
[1735651737245,2.76717,3434.7,3434.0,8.3262413]
[1735651737398,2.76717,3434.7,3434.5,0.793]
[1735651737738,2.76717,3434.7,3434.6,5.33575]
[1735651737940,2.76717,3434.7,3434.6,4.96905]
[1735651738099,2.76717,3434.7,3434.0,4.1192413]
[1735651738611,2.76717,3434.7,3434.0,0.793]
[1735651738941,2.76717,3434.7,3434.1,2.91196]
[1735651739343,2.76717,3434.7,3434.0,0.793]
[1735651739553,2.76717,3434.7,3434.4,2.9117]
[1735651739702,2.76717,3434.7,3434.6,2.91154]
[1735651740062,2.76717,3434.7,3434.4,2.9117]
[1735651740273,2.76717,3434.7,3434.2,2.91187]
[1735651740552,2.76717,3434.7,3434.3,2.91179]
[1735651740728,2.76717,3434.7,3434.5,2.91156]
[1735651740934,2.76717,3434.7,3434.6,8.0]
[1735651741116,2.76717,3434.7,3434.6,8.793]
[1735651741743,5.1229,3435.3,3434.9,2.91129]
[1735651742045,5.1229,3435.3,3435.1,2.91109]
[1735651742351,5.1229,3435.3,3435.2,2.90738]
[1735651742642,5.1229,3435.3,3435.2,3.71547]
[1735651742818,5.1229,3435.3,3435.2,0.793]
[1735651743020,5.1229,3435.3,3435.2,4.82483]
[1735651743236,5.1229,3435.3,3435.0,2.91119]
[1735651743441,5.1229,3435.3,3434.4,2.91171]
[1735651743731,5.1229,3435.3,3434.6,3.3262413]
[1735651743932,5.1229,3435.3,3435.0,2.91116]
[1735651744157,5.1229,3435.3,3435.2,0.793]
[1735651744317,5.1229,3435.3,3435.2,3.4324]
[1735651745307,5.1229,3435.3,3435.2,0.793]
[1735651745508,5.1229,3435.3,3434.8,2.91131]
[1735651745509,5.1229,3435.3,3434.5,0.793]
[1735651745839,5.1229,3435.3,3434.6,2.91152]
[1735651746034,5.1229,3435.3,3434.7,5.0]
[1735651746234,0.80037336,3435.3,3435.2,0.793]
[1735651746434,0.80037336,3435.3,3435.2,3.49185]
[1735651746642,0.80037336,3435.3,3434.8,2.91135]
[1735651746810,0.80037336,3435.3,3434.6,0.793]
[1735651747147,0.70037336,3435.3,3434.2,0.793]
[1735651747308,0.70037336,3435.3,3434.5,3.3262413]
[1735651747514,0.70037336,3435.3,3434.6,8.0]
[1735651747744,0.70037336,3435.3,3435.1,0.793]
[1735651747946,0.70037336,3435.3,3435.2,7.91103]
[1735651748127,0.70037336,3435.3,3435.2,5.93136]
[1735651748954,0.70037336,3435.3,3435.2,5.0]
[1735651749135,0.70037336,3435.3,3434.4,2.91166]
[1735651749345,2.91111,3435.2,3434.0,4.06803]
[1735651749650,0.8529507,3435.3,3434.1,2.91191]
[1735651749826,3.7639207,3435.3,3434.1,2.91191]
[1735651750027,3.7639207,3435.3,3434.0,1.156]
[1735651750028,0.70037336,3435.3,3434.3,3.3262413]
[1735651750226,0.70037336,3435.3,3434.7,2.91142]
[1735651750428,0.70037336,3435.3,3434.8,0.7665]
[1735651750630,0.70037336,3435.3,3434.5,2.91162]
[1735651750951,0.8254,3435.2,3434.0,1.156]
[1735651751160,2.91148,3434.7,3434.0,1.156]
[1735651751370,2.9113,3434.9,3434.0,1.156]
[1735651751672,2.91126,3435.0,3434.0,1.156]
[1735651751822,0.8254,3435.2,3434.0,4.4822413]
[1735651752161,0.8254,3435.2,3434.4,3.3262413]
[1735651752365,0.8254,3435.2,3434.3,2.91179]
[1735651752726,0.8254,3435.2,3434.2,0.7665]
[1735651752727,0.8254,3435.2,3434.4,2.91171]